Workbook

Sheet Install
K1: =NOW() -> 2013-10-02T16:16:31.900 | M1: =MONTH(save_date) -> 10
C2: Compupool Products | M2: =DAY(save_date) -> 2
M3: =YEAR(save_date) -> 2013
C4: Commercial Installation Details Questionnaire | M4: =M7&" "&M8 -> 02Oct13 16 16
A5: Dealer / Contractor Information | M5: =HOUR(save_date) -> 16
M6: =MINUTE(save_date) -> 16
A7: Company: | B7: Pool Supply Unlimited | F7: Name: | M7: =TEXT(save_date,"ddmmmyy") -> 02Oct13
E8: Enquiry reference: | M8: =TEXT(save_date,"hh mm") -> 16 16
A10: E-mail Address: | B10: sales@poolsupplyunlimited.com | F10: Address Line 1: | H10: 1426 E Spruce St
A11: Telephone Number: | B11: (888) 836-6025 | F11: Address Line 2:
A12: Fax Number: | B12: (888) 648-5677 | F12: City: | H12: Ontario
F13: State/Province: | H13: CA
E14: Zip / Postal Code: | H14: 91761
B15: Country/Region: | H15: USA
A18: Customer Information
A20: Company: | F20: Name:
E21: Project reference:
A23: E-mail Address: | F23: Address Line 1:
A24: Telephone Number: | F24: Address Line 2:
A25: Fax Number: | F25: City:
F26: State/Province:
F27: Postal Code:
B28: Country/Region: | H28: USA
A30: Pool Information
A32: Is this a Pool or Spa? | M32: 1
G34: explain:
A36: Is this indoor or outdoor? | M36: 1
A38: What is the volume of the project? | M38: 1
A40: What is the approximate surface area of the pool | H40: sq. feet | J40: sq. meters
A42: Is the pool heated or non-heated? | M42: 1
A44: Is the project a flat-water pool, wave pool, slide pool, lazy river, or therapy/hospital pool?
M46: 1
E48: explain:
A50: What is the number of water features in the pool and their description (e.g. water slide, river, fountain, etc..)
A53: What is the finish of the pool walls, floor, coping and pavement around the pool (e.g. paint, concrete, epoxy, fiberglass, tiles, etc…)
A57: Operation Information
A59: What is the minimum number of hours, per day, the main filter pump operates
A61: What is the maximum number of bathers in the pool/spa at any one specific time?
A63: What is the maximum number of bathers in the pool/spa over the entire day?
A65: What is the maximum water temperature maintained? (F or C) | K65: 77 | L65: ◦F
K66: 25 | L66: ◦C
A68: How many days per year is the project operational?
A70: Sanitization Information
A71: What are the current levels for the following Parameters?
B73: Total Alkalinity (ppm project) | G73: Total Alkalinity (ppm source)
B75: Calcium Hardness (ppm project) | G75: Calcium Hardness (ppm source)
B77: pH (project) | G77: pH (source)
B79: Total Dissolved Solids (TDS) (ppm project) | G79: (TDS) (ppm source)
A81: How is the project currently being sanitized? (For existing pools only)
A83: What quantity of sanitizer is being used? | M83: 3
A86: Will a pH dosing system or any other automated chemical controller be used? | M86: 1
G88: explain:
A90: What is the concentration of chlorine residual required to be maintained in the pool water?
A92: Other relevant information
A93: Is there any other relevant data which Compu Pool should know.
A98: I confirm that the above information is complete and accurate, and I understand that it will be used for sizing a Compu Pool System for this project.
A99: Consult with your local Government Health Department for any specific local regulations concerning Electrolytic Sanitizing methods.
A101: _________________________________________ Project Manager

Sheet Viability
K1: =TODAY() -> 2013-10-02
C2: Compupool Products
C4: Commercial Chlorinator Viability Tool
B6: Customer Information
B8: Company: | C8: =customer_name -> 0 | F8: Name: | H8: =Install!H7 -> 0
F9: Enquiry reference:
B11: E-mail Address: | F11: Address Line 1:
B12: Telephone Number: | F12: Address Line 2:
B13: Fax Number: | F13: City:
F14: State/Province:
F15: Zip / Postal Code:
F16: Country/Region: | H16: USA
B18: Customer Costs
B19: Chlorine | P19: Compound_name | Q19: 2 | R19: asd | S19: 1 | T19: litres / kgs | U19: 1 | V19: daily | W19: 1
B20: Type of chlorine currently used: | H20: Concentration: | K20: =CHOOSE(P25,Q20,Q21,Q22,Q23,Q24) -> 10 | L20: % | P20: Chlorine gas | Q20: 100 | R20: ase | S20: 2 | T20: lbs | U20: =1/2.206 -> 0.4533091568 | V20: weekly | W20: 7
H21: (adjust concentration if required) | P21: Trichlor Tablets | Q21: 90 | R21: asw | S21: 3 | T21: US Gallons | U21: =4.546*0.8 -> 3.6368 | V21: monthly | W21: =365.25/12 -> 30.4375
D22: Volume used: | F22: 100 | G22: Override concentration: | K22: 0 | L22: % | P22: Calcium Hypochlorite | Q22: 65 | R22: asc | S22: 4 | T22: Imperial Gallons | U22: 4.546 | V22: annually | W22: 365.25
K23: =IF(K22>0.01,K22,concentration) -> 10 | P23: Sodium Hypochlorite (liquid chlorine) | Q23: 10 | R23: ax
C24: Volume Unit: | K24: =CHOOSE(chosen_unit,U19,U20,U21,U22) -> 0.4533091568 | P24: Dichlor | Q24: 60
P25: 4 | T25: 2 | V25: 1
C26: Frequency: | K26: =CHOOSE(V25,W19,W20,W21,W22) -> 1
C28: Chlorine lbs per day: | F28: =Chlorine_kgs_per_day*2.206 -> 10 | H28: Chlorine Kgs Day: | K28: =vol_unit*volume*chosen_concentration/(100*frequency) -> 4.533091568 | P28: 100 | Q28: 90 | R28: 65 | T28: 10 | U28: 60
B30: Operational days per year: | F30: 365 | H30: Annual Volume used: | K30: =volume/frequency*operational_days_pa -> 36500 | L30: =VLOOKUP(chosen_unit,S19:T22,2) -> lbs
C32: Chlorine Cost: | F32: 2.3 | G32: Annual Chlorine Cost : | K32: =annual_chlorine_volume*chlorine_unit_cost -> 83950 | L32: p.a
B34: Compupool Chlorinator Costs | P34: litres or kgs;lbs;US Gallons;Imperial Gallons
B36: Compupool Model No: | P36: 1;0.454;3.78541178 ;4.54609188
C38: CPP Daily Output: | F38: =CPP_daily_output*2.206 -> 5.005414 | G38: lbs/day | H38: CPP Daily Output: | K38: =VLOOKUP(Model_ref_no,Comm_model_data,3) -> 2.269 | L38: kgs/day | Q38: 1
H40: CPP Kilowatt rating: | K40: =VLOOKUP(Model_ref_no,Comm_model_data,4) -> 0.5 | L40: kW
B42: CPP Model cost: | F42: 0 | G42: Cost per kilowatt-hour: | K42: 0.09
H44: Approx. salt cost:* | K44: =VLOOKUP(Model_ref_no,Comm_model_data,6) -> 378 | L44: over 5 years
C46: Hours of operation per day: | F46: =Chlorine_kgs_per_day/CPP_daily_output*24 -> 47.94808182 | G46: hrs/day | H46: Annual CPP cost: | K46: =Hrs_production_per_day*operational_days_pa*Cost_per_kwh*CPP_kW_rating -> 787.5472438 | L46: p.a
F48: Payback (years): | K48: =CPP_model_cost/(K32-Annual_CPP_Cost-(Salt_cost_5yr/5)) -> 0 | L48: yrs
B50: Five Year Cost Analysis
B52: Chlorine at today's prices | K52: =5*K32 -> 419750
B53: Cost of Compupool Chlorinator | H53: =CPP_model_cost -> 0
B54: Allowance for the cost of salt * | H54: =Salt_cost_5yr -> 378
B55: Cost of Electricity | H55: =Annual_CPP_Cost*5 -> 3937.736219
K56: =SUM(H53:H55) -> 4315.736219
B57: Saving over Five years | K57: =K52-K56 -> 415434.2638
B59: Saving as a percentage of chlorine cost | K59: =K57/K52 -> 0.9897183175
B61: *Salt cost is an allowance only, based on the initial treatment, and 10% loss per year thereafter.

Sheet Sheet3 (hidden)
A2: Sort Order | B2: ID | C2: CPP_Model | D2: Output_kgs_24hrs | E2: Power_in_KW | F2: Capital_Cost | G2: Salt_cost_pa
A3: 2 | B3: 1 | C3: E-S100 | D3: 2.269 | E3: 0.5 | F3: 20000 | G3: 378
A4: 4 | B4: 2 | C4: E-S150 | D4: 3.63 | E4: 0.85 | F4: 30000 | G4: 567
A5: 6 | B5: 3 | C5: E-S200 | D5: 4.54 | E5: 1.15 | F5: 40000 | G5: 756
A6: 8 | B6: 4 | C6: E-S300 | D6: 6.806 | E6: 1.7 | F6: 50000 | G6: 1134
A7: 10 | B7: 5 | C7: E-S400 | D7: 9.074 | E7: 2 | F7: 60000 | G7: 1575
A8: 12 | B8: 6 | C8: CPP250NR | D8: 6 | E8: 1 | F8: 16200 | G8: 945
A9: 15 | B9: 7 | C9: CPP400NR | D9: 10 | E9: 2 | F9: 21560 | G9: 1575
A10: 20 | B10: 8 | C10: CPP500NR | D10: 12 | E10: 2.5 | F10: 27000 | G10: 1890
A11: 24 | B11: 9 | C11: CPP600NR | D11: 14.5 | E11: 3.5 | F11: 31160 | G11: 2285
A12: 26 | B12: 10 | C12: CPP800NR | D12: 19 | E12: 4.5 | F12: 35960 | G12: 2990
A13: 28 | B13: 11 | C13: CPP1000NR | D13: 24 | E13: 5 | F13: 43160 | G13: 3780
A14: 30 | B14: 12 | C14: CPP1200NR | D14: 29 | E14: 7 | F14: 51160 | G14: 4565
A15: 35 | B15: 13 | C15: CPP1500NR | D15: 36 | E15: 8.5 | F15: 59160 | G15: 5670
A16: 40 | B16: 14 | C16: CPP2000NR | D16: 48 | E16: 11.5 | F16: 74000 | G16: 7560
A17: 45 | B17: 15 | C17: CPP2500NR | D17: 60 | E17: 14 | F17: 89600 | G17: 9450
A18: 50 | B18: 16 | C18: CPP3000NR | D18: 72 | E18: 17 | F18: 116000 | G18: 11340
